bitfinex-derivatives/quotes_SOLF0:USTF0_20250518
["timestamp","ask_amount","ask_price","bid_price","bid_amount"]
[1747581353592,5.7489,173.89,173.84,69.5502]
[1747581354490,5.7486,173.9,173.85,5.75]
[1747581354790,127.46,173.92,173.84,63.8]
[1747581355191,5.749,173.89,173.84,69.5502]
[1747581355493,127.46,173.92,173.84,69.5502]
[1747581355494,127.46,173.92,173.84,63.8]
[1747581355684,5.7487,173.9,173.85,5.75]
[1747581355881,127.46,173.92,173.84,63.8]
[1747581356888,5.749,173.89,173.84,63.8]
[1747581357392,5.7491,173.88,173.84,69.5504]
[1747581357789,5.7491,173.88,173.84,63.8]
[1747581358389,5.7489,173.89,173.84,69.5504]
[1747581358589,5.7489,173.89,173.84,63.8]
[1747581358981,5.7495,173.87,173.84,63.8]
[1747581359988,5.7492,173.88,173.84,63.8]
[1747581360195,127.46,173.92,173.84,63.8]
[1747581360395,5.7499,173.86,173.84,63.8]
[1747581360602,127.46,173.92,173.82,218.16033074]
[1747581361496,5.7503,173.85,173.81,3.9261]
[1747581361682,127.46,173.92,173.81,9.6774]
[1747581361880,127.46,173.92,173.81,3.9261]
[1747581362094,5.7505,173.84,173.81,3.9261]
[1747581362393,127.26,173.87,173.8,63.64]
[1747581362590,5.751,173.83,173.76,63.64]
[1747581362790,127.26,173.87,173.78,5.7523]
[1747581363791,5.751,173.83,173.78,5.7523]
[1747581364003,5.751,173.83,173.79,5.752]
[1747581364490,5.751,173.83,173.78,5.7523]
[1747581364795,5.7511,173.82,173.78,5.7523]
[1747581364999,127.26,173.87,173.76,127.26]
[1747581365398,127.28,173.91,173.8,10.5028472]
[1747581365701,127.28,173.91,173.83,10.5028472]
[1747581365900,127.28,173.91,173.84,63.66]
[1747581366092,134.37048847,173.95,173.84,63.66]
[1747581366295,134.37048847,173.95,173.86,5.7497]
[1747581366495,5.7487,173.9,173.86,5.7497]
[1747581366798,134.37048847,173.95,173.87,5.7494]
[1747581367597,134.37048847,173.95,173.84,63.66]
[1747581368102,5.7479,173.92,173.87,5.7494]
[1747581368302,5.7479,173.92,173.84,63.66]
[1747581368495,63.66,173.95,173.86,10.5028472]
[1747581368799,5.7475,173.93,173.89,5.7485]
[1747581369095,63.6,173.96,173.89,63.66]
[1747581369293,5.7484,173.9,173.89,63.66]
[1747581369497,63.6,173.96,173.86,63.6]
[1747581369797,5.7477,173.93,173.88,5.7488]
[1747581369998,63.6,173.96,173.88,5.7488]
[1747581370403,5.7482,173.91,173.86,69.3495]
[1747581370587,63.6,173.96,173.86,63.6]
[1747581372095,63.6,173.96,173.87,63.58]
[1747581372290,1.8297,173.97,173.82,2.0102]
[1747581372496,12.5047472,173.95,173.82,2.0102]
[1747581372694,2.0019,173.95,173.82,2.0102]
[1747581372896,2.0019,173.95,173.86,5.7497]
[1747581373097,2.0019,173.95,173.86,63.66]
[1747581374001,127.24,173.96,173.87,5.7491]
[1747581374202,127.24,173.96,173.86,63.66]
[1747581374596,5.7477,173.93,173.88,5.7489]
[1747581374798,127.24,173.96,173.86,63.66]
[1747581375295,5.7489,173.89,173.86,63.66]
[1747581375500,127.24,173.96,173.82,65.6702]
[1747581375696,10.5028472,173.95,173.82,129.2302]
[1747581375998,10.5028472,173.95,173.82,134.9813]
[1747581376298,127.24,173.96,173.82,134.9813]
[1747581376494,127.24,173.96,173.82,129.2302]
[1747581377190,127.24,173.96,173.82,139.7330472]
[1747581377698,5.7475,173.93,173.88,5.7489]
[1747581377997,127.24,173.96,173.87,127.22]
[1747581378297,5.7472,173.94,173.9,5.7484]
[1747581378501,2.0019,173.99,173.88,10.5028472]
[1747581378699,129.1938,174.0,173.88,10.5028472]
[1747581378999,129.1938,174.0,173.91,5.748]
[1747581379196,129.1938,174.0,173.89,5.7369]
[1747581379398,1.9974,173.99,173.89,5.7369]
[1747581379591,5.7477,173.93,173.89,5.7369]
[1747581379898,1.9974,173.99,173.84,496.98]
[1747581380199,1.9974,173.99,173.85,127.18]
[1747581380702,5.7478,173.93,173.85,127.18]
[1747581380901,63.54,173.96,173.85,127.18]
[1747581381700,5.748,173.92,173.87,5.7493]
[1747581381900,63.54,173.96,173.85,127.18]
[1747581382400,5.7475,173.93,173.85,127.18]
[1747581382594,63.54,173.96,173.85,127.18]
[1747581382799,1.9974,173.99,173.85,127.18]
[1747581382998,624.16,174.01,173.88,10.5028472]
[1747581383196,5.7463,173.97,173.92,5.7476]
[1747581383401,5.7463,173.97,173.92,69.3876]
[1747581383801,5.7465,173.96,173.92,69.3876]
[1747581384001,5.7465,173.96,173.92,63.64]
[1747581384506,127.16,174.01,173.92,69.3875]
[1747581384699,5.7462,173.97,173.92,69.3875]
[1747581385007,127.16,174.01,173.92,63.64]
[1747581385301,63.64,174.01,173.92,63.64]
[1747581386105,63.64,174.01,173.95,5.7466]
[1747581386603,63.64,174.01,173.92,63.64]
[1747581387008,127.14,174.05,173.94,10.5028472]
[1747581387207,5.7446,174.02,173.99,5.7454]
[1747581387600,5.7442,174.03,173.99,5.7454]
[1747581388103,63.64,174.05,173.99,5.7454]
[1747581388302,5.7447,174.02,173.98,5.7457]
[1747581388608,63.64,174.05,173.97,69.2647]
[1747581388909,63.64,174.05,173.97,63.48]
[1747581389408,5.7448,174.01,173.97,63.48]
[1747581390311,5.7446,174.02,173.97,63.48]
[1747581390509,63.64,174.05,173.97,63.48]
[1747581390713,63.46,174.07,173.98,1.9049]
[1747581390916,5.7443,174.03,173.99,5.7454]
[1747581391210,63.46,174.07,173.98,5.6901]
[1747581391605,63.46,174.07,173.98,11.4358]
[1747581392105,5.7444,174.03,173.99,5.7454]
[1747581392310,63.46,174.07,173.99,5.7454]
[1747581392511,63.46,174.07,173.98,5.6901]
[1747581392714,5.7447,174.02,173.98,5.6901]
[1747581392907,63.46,174.07,173.98,5.6901]
[1747581393411,5.744,174.04,173.98,5.6901]
[1747581393711,63.46,174.07,173.98,5.6901]
[1747581394307,5.7439,174.04,173.99,5.7454]
[1747581394717,63.46,174.07,173.99,5.7454]
[1747581395614,5.744,174.04,174.0,5.7451]
[1747581396207,63.48,174.09,173.98,5.6901]
[1747581397105,5.7429,174.07,173.98,5.6901]
[1747581397713,5.7429,174.07,174.03,5.7439]
[1747581397922,63.48,174.09,174.02,63.46]
[1747581398315,63.48,174.09,174.02,69.2042]
[1747581398610,5.7429,174.07,174.02,63.46]
[1747581398813,5.7429,174.07,174.03,5.7439]
[1747581399013,7.12945528,174.13,174.03,10.5028472]
[1747581399216,5.7421,174.1,174.03,10.5028472]
[1747581399414,7.12945528,174.13,174.08,5.7424]
[1747581399608,135.83525528,174.17,174.08,5.7424]
[1747581399921,5.7415,174.12,174.08,5.7424]
[1747581400223,135.83525528,174.17,174.08,5.7424]
[1747581401209,72.43525528,174.17,174.07,126.86]
[1747581401610,5.7401,174.16,174.07,126.86]
[1747581401817,5.7401,174.16,174.08,5.8038]
[1747581402219,5.7401,174.16,174.12,5.7409]
[1747581402419,3.8542,174.23,174.12,126.82]
[1747581402620,63.44,174.22,174.12,126.82]
[1747581403314,63.44,174.22,174.14,5.7404]
[1747581403827,5.7391,174.19,174.14,5.7404]
[1747581404325,63.44,174.22,174.12,126.82]
[1747581404718,65.3552,174.25,174.12,126.82]
[1747581404919,65.3552,174.25,174.12,143.54332652]
[1747581405721,1.9952,174.25,174.12,143.54332652]
[1747581406436,5.738,174.22,174.18,5.7389]
[1747581406727,1.9952,174.25,174.18,63.42]
[1747581406927,63.42,174.26,174.18,63.42]
[1747581407219,7.08491263,174.27,174.18,65.4246]
[1747581407427,128.5778,174.3,174.18,69.3743]
[1747581407626,5.7365,174.27,174.22,5.7376]
[1747581407826,128.5778,174.3,174.18,69.3743]
[1747581408030,5.7375,174.24,174.19,5.7388]
[1747581408230,128.5778,174.3,174.18,69.3743]
[1747581408636,5.7372,174.25,174.2,5.7385]
[1747581409225,128.5778,174.3,174.18,5.9543]
[1747581409429,65.2578,174.3,174.19,126.72]
[1747581409622,128.5578,174.3,174.19,126.72]
[1747581409825,5.7363,174.27,174.19,126.72]
[1747581410024,128.5578,174.3,174.19,126.72]
[1747581410226,5.7357,174.29,174.19,126.72]
[1747581410625,63.42,174.3,174.19,126.72]
[1747581410926,1.9861,174.32,174.19,126.72]
[1747581411126,1.8835,174.33,174.2,16.72332652]
[1747581411425,63.3,174.37,174.24,16.72332652]
[1747581411734,63.3,174.37,174.25,128.554]
[1747581411926,63.4,174.38,174.26,1.9072]
[1747581412122,1.8464,174.4,174.27,1.9795]
[1747581412528,5.733,174.37,174.27,1.9795]
[1747581412735,1.8464,174.4,174.28,16.72332652]
[1747581412935,5.7329,174.38,174.28,16.72332652]
[1747581413141,1.8464,174.4,174.28,16.72332652]
[1747581413334,63.3,174.41,174.28,16.72332652]
[1747581413534,63.28,174.45,174.32,16.72332652]
[1747581413741,63.28,174.45,174.33,128.6396]
[1747581413933,63.38,174.46,174.33,128.6396]
[1747581414134,63.38,174.46,174.34,126.64]
[1747581415040,5.7315,174.42,174.35,5.7333]
[1747581415246,63.38,174.46,174.34,126.64]
[1747581415634,63.38,174.46,174.34,132.3736]
[1747581415845,63.38,174.46,174.34,126.64]
[1747581416046,5.7329,174.38,174.34,63.38]
[1747581416235,63.26,174.41,174.34,63.38]
[1747581416546,1.8665,174.4,174.34,63.38]
[1747581416742,1.8665,174.4,174.31,63.26]
[1747581416939,1.8665,174.4,174.3,559.44]
[1747581417142,1.8665,174.4,174.3,63.36]
[1747581417647,1.8665,174.4,174.3,69.0952]
[1747581418146,1.8665,174.4,174.3,63.36]
[1747581418445,5.733,174.37,174.31,5.7348]
[1747581418644,5.733,174.37,174.3,63.36]
[1747581418846,5.7326,174.39,174.33,5.7342]
[1747581419248,1.8665,174.4,174.33,5.7342]
[1747581419444,5.7331,174.37,174.31,5.7347]
[1747581419649,1.8665,174.4,174.31,5.7347]
[1747581420247,1.8665,174.4,174.3,63.36]
[1747581420552,5.7341,174.34,174.3,63.36]
[1747581421049,1.8665,174.4,174.3,63.36]
[1747581421743,5.7339,174.35,174.3,63.36]
[1747581421944,63.22,174.37,174.3,63.36]
[1747581422148,1.8665,174.4,174.3,63.36]
[1747581422348,63.22,174.39,174.34,5.7339]
[1747581422545,1.8665,174.4,174.3,63.36]
[1747581422952,3.737,174.47,174.37,5.7329]
[1747581423250,128.3737,174.46,174.37,5.7329]
[1747581423649,128.3737,174.46,174.38,5.7326]
[1747581423851,5.7307,174.44,174.35,63.22]
[1747581424042,128.3737,174.46,174.4,5.7319]
[1747581424245,128.3737,174.46,174.36,5.7517]
[1747581424952,5.7306,174.45,174.39,5.7323]
[1747581425253,63.2,174.5,174.4,63.2]
[1747581425552,1.1461318,174.5,174.4,63.2]
[1747581426155,1.1461318,174.5,174.44,5.7304]
[1747581426652,1.1461318,174.5,174.43,5.7309]
[1747581426952,1.1461318,174.5,174.4,63.2]
[1747581427655,6.8749318,174.5,174.45,5.73]
[1747581427854,6.8749318,174.5,174.45,63.18]
[1747581428151,1.1461318,174.5,174.45,63.18]
[1747581428755,6.8748318,174.5,174.45,68.91]
[1747581429058,1.1461318,174.5,174.45,68.91]
[1747581429556,1.1461318,174.5,174.45,63.18]
[1747581430755,5.876,174.54,174.45,63.18]
[1747581430955,5.7281,174.52,174.45,63.18]
[1747581431155,5.876,174.54,174.45,63.18]
[1747581431459,5.7284,174.51,174.45,63.18]
[1747581432055,5.7284,174.51,174.46,5.7297]
[1747581432362,5.876,174.54,174.44,63.18]
[1747581433358,5.876,174.54,174.47,5.7294]
[1747581433359,5.7281,174.52,174.47,5.7294]
[1747581433562,5.876,174.54,174.44,63.18]
[1747581434059,126.32,174.57,174.44,65.0737]
[1747581434259,126.32,174.57,174.44,68.8049]
[1747581434455,5.6894,174.58,174.44,85.52822652]
[1747581434654,5.6894,174.58,174.44,580.96822652]
[1747581435453,5.7273,174.55,174.44,580.96822652]
[1747581436058,5.7274,174.54,174.44,580.96822652]
[1747581436252,5.6894,174.58,174.45,126.28]
[1747581436562,5.6894,174.58,174.48,5.7291]
[1747581436757,5.6894,174.58,174.45,126.28]
[1747581437161,5.7282,174.52,174.47,5.7294]
[1747581437360,5.6894,174.58,174.44,517.78822652]
[1747581437661,5.7289,174.5,174.45,132.0101]
[1747581437854,63.12,174.55,174.45,126.28]
[1747581438253,63.12,174.55,174.46,5.7299]
[1747581438450,63.12,174.55,174.45,126.28]
[1747581438757,63.12,174.55,174.44,499.1712]
[1747581438962,63.12,174.55,174.45,63.16]
[1747581439464,5.7289,174.5,174.45,63.16]
[1747581439656,63.12,174.55,174.45,63.16]
[1747581439855,63.12,174.55,174.46,5.7299]
[1747581440056,63.12,174.55,174.45,63.16]
[1747581440460,5.7284,174.51,174.45,63.16]
[1747581440865,5.7284,174.51,174.46,5.7297]
[1747581441164,5.7284,174.51,174.45,63.16]
[1747581441468,5.7287,174.5,174.45,63.16]
[1747581441670,63.12,174.55,174.45,63.16]
[1747581442161,5.7292,174.49,174.45,68.8903]
[1747581442363,63.12,174.55,174.45,63.16]
[1747581442662,5.7288,174.5,174.46,5.7299]
[1747581442964,63.12,174.55,174.45,63.16]
[1747581443164,63.1,174.55,174.45,63.16]
[1747581443668,5.7289,174.5,174.45,63.16]
[1747581444064,63.1,174.55,174.45,63.16]
[1747581444265,5.728,174.52,174.45,63.16]
[1747581444468,63.1,174.55,174.45,126.24]
[1747581444767,63.1,174.55,174.47,5.7296]
[1747581444966,63.1,174.55,174.45,126.24]
[1747581445969,5.728,174.52,174.45,126.24]
[1747581446171,5.728,174.52,174.45,128.0725]
[1747581446371,63.16,174.56,174.45,128.0725]
[1747581446571,63.16,174.56,174.46,10.41338664]
[1747581446768,68.7694,174.58,174.46,10.41338664]
[1747581447071,5.728,174.53,174.48,5.7293]
[1747581448364,5.728,174.53,174.48,68.7893]
[1747581448564,5.728,174.53,174.49,5.7289]
[1747581448766,5.7273,174.55,174.48,63.06]
[1747581448975,214.47020603,174.64,174.48,63.06]
[1747581449175,3.6878,174.63,174.53,5.7274]
[1747581449473,3.6878,174.63,174.53,63.06]
[1747581449865,5.7258,174.59,174.53,63.06]
[1747581450167,3.6878,174.63,174.53,63.06]
[1747581450374,5.7259,174.59,174.54,5.7273]
[1747581450575,66.7478,174.63,174.53,63.06]
[1747581450874,5.7251,174.61,174.55,5.7267]
[1747581451178,66.7478,174.63,174.53,64.9997]
[1747581451473,66.7478,174.63,174.54,5.7273]
[1747581452274,66.7478,174.63,174.53,70.7274]
[1747581452572,66.7478,174.63,174.53,64.9997]
[1747581452764,66.7478,174.63,174.53,70.7274]
[1747581453176,66.7478,174.63,174.53,64.9997]
[1747581453476,3.6878,174.63,174.53,64.9997]
[1747581453675,216.36240603,174.64,174.54,1.9134]
[1747581453973,214.47020603,174.64,174.54,1.9134]
[1747581454778,5.7252,174.61,174.54,1.9134]
[1747581454977,214.47020603,174.64,174.54,1.9134]
[1747581455376,151.41020603,174.64,174.54,1.9134]
[1747581456080,63.04,174.68,174.55,16.65755947]
[1747581456280,1.14501631,174.67,174.55,16.65755947]
[1747581456470,5.7242,174.64,174.59,5.7255]
[1747581456671,5.7242,174.64,174.6,63.04]
[1747581456872,1.14501631,174.67,174.6,63.04]
[1747581457674,6.86821631,174.67,174.61,1.8861]
[1747581457876,1.14501631,174.67,174.61,1.8861]
[1747581458379,5.7237,174.66,174.62,5.7247]
[1747581458882,1.14501631,174.67,174.61,1.8861]
[1747581459778,6.86821631,174.67,174.63,5.7242]
[1747581459981,6.86821631,174.67,174.61,1.8861]
[1747581460281,5.7235,174.66,174.63,5.7242]
[1747581460983,5.7235,174.66,174.62,5.7246]
[1747581461179,1.14501631,174.67,174.62,5.7246]
[1747581461476,63.02,174.66,174.5,63.02]
[1747581461684,5.7256,174.6,174.52,3.7697]
[1747581461981,64.8768,174.66,174.52,3.7697]
[1747581462278,5.7257,174.6,174.52,3.7697]
[1747581462880,64.8768,174.66,174.52,3.7697]
[1747581463278,66.7679,174.66,174.54,5.7273]
[1747581463577,2.0013,174.65,174.55,63.02]
[1747581464086,2.0013,174.65,174.55,68.747]
[1747581464782,5.726,174.59,174.55,63.02]
[1747581465474,5.7262,174.58,174.55,63.02]
[1747581466381,2.0013,174.65,174.54,63.02]
[1747581466785,5.7269,174.56,174.54,63.02]
[1747581467284,5.7267,174.57,174.54,63.02]
[1747581467685,63.02,174.61,174.54,63.02]
[1747581468278,126.06,174.61,174.54,63.02]
[1747581469083,5.7267,174.57,174.54,63.02]
[1747581469583,5.7268,174.56,174.54,63.02]
[1747581469783,126.06,174.61,174.54,63.02]
[1747581469978,126.06,174.61,174.51,63.02]
[1747581471578,5.7278,174.53,174.5,63.04]
[1747581471784,126.06,174.61,174.5,63.04]
[1747581472285,5.7278,174.53,174.5,63.04]
[1747581472483,126.06,174.61,174.5,63.04]
[1747581472985,5.7277,174.54,174.5,63.04]
[1747581473183,10.40976606,174.62,174.46,507.24976606]
[1747581473184,63.0,174.55,174.46,1.9]
[1747581473486,63.0,174.55,174.44,64.9609]
[1747581473690,68.7383,174.55,174.44,64.9609]
[1747581473989,68.7383,174.55,174.44,75.37066606]
[1747581475389,63.0,174.55,174.49,5.729]
[1747581475590,63.0,174.55,174.49,68.769]
[1747581475792,63.0,174.55,174.49,63.04]
[1747581476088,63.0,174.55,174.5,5.7287]
[1747581476289,63.04,174.6,174.5,5.7287]
[1747581476493,63.02,174.59,174.5,5.7287]
[1747581476891,5.7273,174.55,174.5,5.7287]
[1747581477285,63.04,174.6,174.51,5.7281]
[1747581477481,5.7267,174.57,174.49,64.8514]
[1747581477888,126.06,174.6,174.52,5.7279]
[1747581478091,5.7266,174.57,174.52,5.7279]
[1747581478694,5.7268,174.56,174.52,5.7279]
[1747581478893,126.06,174.6,174.53,5.7277]
[1747581479086,63.04,174.6,174.53,5.7277]
[1747581479389,5.7264,174.57,174.53,5.7277]
[1747581479993,5.7268,174.56,174.52,68.728]
[1747581480588,63.04,174.6,174.52,63.0]
[1747581480994,63.04,174.6,174.52,68.728]
[1747581481494,63.04,174.6,174.52,63.0]
[1747581481696,5.727,174.56,174.52,63.0]
[1747581482094,63.04,174.6,174.52,63.0]
[1747581482490,5.7266,174.57,174.52,68.7278]
[1747581483397,63.04,174.6,174.52,63.0]
[1747581483998,5.727,174.56,174.52,63.0]
[1747581484195,5.727,174.56,174.51,5.7281]
[1747581484400,63.04,174.6,174.5,63.0]
[1747581484603,63.04,174.6,174.5,68.7284]
[1747581484900,63.04,174.6,174.5,63.0]
[1747581485401,126.04,174.6,174.5,63.0]
[1747581485605,5.7262,174.58,174.53,5.7275]
[1747581486299,5.7264,174.57,174.53,5.7275]
[1747581486703,126.04,174.6,174.54,5.7272]
[1747581486901,63.04,174.6,174.5,63.0]
[1747581487104,63.0,174.64,174.51,63.0]
[1747581487399,63.0,174.65,174.52,16.64933627]
[1747581487606,11.89622894,174.67,174.52,18.64373627]
[1747581487903,5.7238,174.65,174.52,18.64373627]
[1747581488100,8.22992894,174.67,174.52,18.64373627]
[1747581488403,8.22992894,174.67,174.56,16.64933627]
[1747581488596,8.22992894,174.67,174.57,129.8557]
[1747581488795,8.22992894,174.67,174.61,5.7248]
[1747581489095,5.724,174.65,174.61,5.7248]
[1747581489296,8.22992894,174.67,174.6,5.7253]
[1747581489697,5.7243,174.64,174.57,129.8557]
[1747581490098,1.14501631,174.67,174.57,3.8557]
[1747581490299,5.7251,174.61,174.58,63.0]
[1747581490494,63.0,174.68,174.58,63.0]
[1747581490695,1.9177,174.66,174.58,63.0]
[1747581490892,1.8725,174.65,174.58,63.0]
[1747581491507,5.7253,174.61,174.58,63.0]
[1747581491697,1.8725,174.65,174.58,63.0]
[1747581491899,62.98,174.64,174.52,7.23965972]
[1747581492103,62.98,174.63,174.53,62.98]
[1747581492400,62.98,174.63,174.53,68.7077]
[1747581492706,62.98,174.63,174.53,62.98]
[1747581492908,1.8395,174.62,174.53,62.98]
[1747581493200,5.7265,174.57,174.53,62.98]
[1747581493407,1.8395,174.62,174.53,62.98]
[1747581494809,5.7263,174.58,174.53,68.7076]
[1747581495010,62.98,174.63,174.53,62.98]
[1747581495210,1.8725,174.65,174.53,62.98]
[1747581495413,64.8525,174.65,174.52,5.24525972]
[1747581495909,5.7268,174.56,174.52,10.97295972]
[1747581496108,64.8525,174.65,174.52,10.97295972]
[1747581496313,64.8525,174.65,174.52,5.24525972]
[1747581496503,5.7274,174.54,174.52,5.24525972]
[1747581497400,5.7277,174.53,174.52,5.24525972]
[1747581498314,5.7287,174.5,174.49,6.99367963]
[1747581499112,5.7292,174.49,174.46,5.23328988]
[1747581499416,126.02,174.55,174.46,5.23328988]
[1747581499612,5.7297,174.47,174.46,5.23328988]
[1747581500009,126.02,174.55,174.46,5.23328988]
[1747581501015,5.7275,174.54,174.49,5.729]
[1747581501713,5.7278,174.53,174.48,68.7293]
[1747581502010,5.7278,174.53,174.48,63.0]
[1747581502815,5.7278,174.53,174.48,68.7293]
[1747581503611,63.0,174.55,174.48,63.0]
[1747581505914,63.0,174.55,174.45,9.5378]
[1747581506113,63.0,174.55,174.42,63.0]
[1747581506409,5.7278,174.53,174.48,5.7291]
[1747581506609,63.0,174.55,174.42,63.0]
[1747581506913,63.0,174.55,174.46,63.0]
[1747581507109,63.0,174.55,174.47,66.8787]
[1747581507505,5.7277,174.53,174.47,66.8787]
[1747581508316,63.0,174.55,174.47,66.8787]
[1747581509616,5.7278,174.53,174.49,5.729]
[1747581509813,5.7278,174.53,174.47,66.8787]
[1747581510213,5.7284,174.51,174.47,66.8787]
[1747581510520,63.0,174.55,174.47,66.8787]
[1747581510719,5.7278,174.53,174.47,66.8787]
[1747581510921,63.0,174.55,174.47,66.8787]
[1747581511122,63.0,174.57,174.47,66.8787]
[1747581511323,5.32392008,174.58,174.47,66.8787]
[1747581511516,5.32392008,174.58,174.48,1.8976]
[1747581511916,5.7271,174.55,174.48,1.8976]
[1747581512522,5.32392008,174.58,174.5,5.7287]
[1747581513520,5.7275,174.54,174.5,5.7287]
[1747581513928,5.32392008,174.58,174.51,5.7284]
[1747581514125,5.32392008,174.58,174.48,1.8976]
[1747581514432,5.32392008,174.6,174.48,18.54693627]
[1747581514724,5.7267,174.57,174.48,18.54693627]
[1747581514926,5.32392008,174.6,174.48,18.54693627]
[1747581515426,5.32392008,174.6,174.52,5.7278]
[1747581515630,5.32392008,174.6,174.52,68.7078]
[1747581515922,5.7277,174.53,174.52,62.98]
[1747581516123,62.98,174.58,174.48,64.8776]
[1747581516524,5.7281,174.52,174.48,64.8776]
[1747581516725,63.0,174.56,174.48,64.8776]
[1747581517229,62.98,174.58,174.48,64.8776]
[1747581517527,5.7277,174.54,174.49,5.729]
[1747581517728,5.7277,174.54,174.48,64.8776]
[1747581517940,62.98,174.58,174.48,64.8776]
[1747581518532,5.7273,174.55,174.5,5.7286]
[1747581518730,62.98,174.58,174.48,64.8776]
[1747581519123,5.32392008,174.59,174.48,64.8776]
[1747581519430,5.7266,174.57,174.52,5.7277]
[1747581519731,5.32392008,174.59,174.52,5.7277]
[1747581519928,5.7264,174.57,174.52,5.7277]
[1747581520432,5.7264,174.57,174.53,5.7276]
[1747581520729,63.0,174.61,174.51,63.0]
[1747581521224,5.7274,174.54,174.5,5.7285]
[1747581521831,5.7278,174.53,174.49,5.729]
[1747581522029,5.7278,174.53,174.48,127.8776]
[1747581522638,5.7289,174.5,174.4,495.02]
[1747581522827,65.94,174.53,174.42,67.9432]
[1747581523229,5.7285,174.51,174.42,67.9432]
[1747581523536,65.94,174.53,174.42,67.9432]
[1747581523727,5.7284,174.51,174.46,5.7298]
[1747581524038,65.94,174.53,174.42,78.35214706]
[1747581524835,65.94,174.53,174.43,65.92]
[1747581525025,65.94,174.53,174.43,71.6509]
[1747581525433,5.7301,174.46,174.42,2.0032]
[1747581525828,65.94,174.53,174.41,75.3947]
[1747581526030,65.94,174.53,174.41,69.6633]
[1747581526536,5.7299,174.47,174.41,75.3949]
[1747581527035,65.94,174.53,174.44,5.7306]
[1747581527237,65.94,174.53,174.41,69.6633]
[1747581527626,5.729,174.5,174.45,5.7303]
[1747581528036,65.94,174.53,174.41,69.6633]
[1747581528237,3.7056,174.55,174.41,69.6633]
[1747581528439,65.94,174.54,174.41,69.6633]
[1747581528633,5.7281,174.52,174.47,5.7295]
[1747581529035,5.7285,174.51,174.46,5.73]
[1747581529430,65.94,174.54,174.42,1.928]
[1747581529940,131.76,174.54,174.42,1.928]
[1747581530237,5.7278,174.53,174.42,1.928]
[1747581530440,131.76,174.54,174.42,18.59858599]
[1747581530640,5.7283,174.52,174.48,5.7293]
[1747581531241,137.4877,174.54,174.49,5.729]
[1747581531540,131.76,174.54,174.49,5.729]
[1747581531739,131.76,174.54,174.48,5.7293]
[1747581531942,131.76,174.54,174.47,65.96]
[1747581532641,5.7283,174.52,174.48,5.7293]
[1747581532944,131.76,174.54,174.47,65.96]
[1747581533147,5.32392008,174.57,174.47,65.96]
[1747581533643,5.7273,174.55,174.52,5.728]
[1747581533837,131.56,174.58,174.52,5.728]
[1747581534442,5.7271,174.55,174.51,5.7283]
[1747581534637,131.56,174.58,174.51,5.7283]
[1747581535543,5.7268,174.56,174.51,5.7283]
[1747581536142,5.7268,174.56,174.52,5.7279]
[1747581536446,65.94,174.58,174.49,1.887]